fUSD/lending_fUSD_20241202
["ID","MTS","AMOUNT","RATE_DAILY","PERIOD"]
[343961609,1733153111281,765.19208097,7.09e-05,2]
[343961610,1733153113229,765.19208097,7.098e-05,2]
[343961611,1733153113345,765.19208097,7.106e-05,2]
[343961612,1733153113463,765.19208097,7.113e-05,2]
[343961613,1733153113560,765.19208097,7.121e-05,2]
[343961614,1733153113659,765.19208097,7.129e-05,2]
[343961615,1733153113824,765.19208097,7.137e-05,2]
[343961616,1733153114000,765.19208097,7.144e-05,2]
[343961617,1733153114085,765.19208097,7.152e-05,2]
[343961618,1733153114227,765.19208097,7.16e-05,2]
[343961624,1733153141671,150.0,6.904e-05,2]
[343961625,1733153141987,150.0,7.16e-05,2]
[343961627,1733153145427,150.0,6.904e-05,2]
[343961628,1733153151495,383.16870906,6.904e-05,2]
[343961629,1733153151810,383.16870906,6.912e-05,2]
[343961630,1733153152117,383.16870906,6.92e-05,2]
[343961631,1733153152436,383.16870906,6.927e-05,2]
[343961632,1733153153297,383.16870906,6.935e-05,2]
[343961633,1733153153640,383.16870906,6.943e-05,2]
[343961634,1733153153946,383.16870906,6.951e-05,2]
[343961635,1733153154294,383.16870906,6.958e-05,2]
[343961636,1733153154621,383.16870906,6.966e-05,2]
[343961637,1733153154933,383.16870906,6.974e-05,2]
[343961638,1733153155247,383.16870906,6.982e-05,2]
[343961639,1733153155709,383.16870906,6.989e-05,2]
[343961640,1733153156057,383.16870906,6.997e-05,2]
[343961641,1733153156390,383.16870906,7.005e-05,2]
[343961642,1733153156742,383.16870906,7.013e-05,2]
[343961643,1733153157462,383.16870906,7.02e-05,2]
[343961644,1733153157791,383.16870906,7.028e-05,2]
[343961646,1733153159738,383.16870906,7.036e-05,2]
[343961647,1733153159778,383.16870906,7.044e-05,2]
[343961648,1733153159831,383.16870906,7.051e-05,2]
[343961649,1733153159869,383.16870906,7.059e-05,2]
[343961650,1733153159912,383.16870906,7.067e-05,2]
[343961651,1733153159952,383.16870906,7.075e-05,2]
[343961652,1733153160217,383.16870906,7.082e-05,2]
[343961653,1733153160538,383.16870906,7.09e-05,2]
[343961654,1733153160871,383.16870906,7.098e-05,2]
[343961655,1733153161205,383.16870906,7.106e-05,2]
[343961656,1733153161551,383.16870906,7.113e-05,2]
[343961657,1733153161990,383.16870906,7.121e-05,2]
[343961658,1733153162417,383.16870906,7.129e-05,2]
[343961659,1733153162827,383.16870906,7.137e-05,2]
[343961660,1733153163155,383.16870906,7.144e-05,2]
[343961661,1733153163521,383.16870906,7.152e-05,2]
[343961662,1733153163922,383.16870906,7.16e-05,2]
[343961663,1733153190772,150.0,6.904e-05,2]
[343961664,1733153191088,150.0,6.924e-05,2]
[343961665,1733153191412,150.0,6.943e-05,2]
[343961666,1733153191730,150.0,6.963e-05,2]
[343961667,1733153192046,150.0,6.983e-05,2]
[343961668,1733153192440,150.0,7.002e-05,2]
[343961669,1733153192483,434.0,6.462e-05,2]
[343961670,1733153192791,150.0,7.022e-05,2]
[343961671,1733153193116,150.0,7.042e-05,2]
[343961672,1733153194561,150.0,7.061e-05,2]
[343961673,1733153195003,150.0,7.081e-05,2]
[343961674,1733153195050,150.0,7.101e-05,2]
[343961675,1733153195091,150.0,7.12e-05,2]
[343961676,1733153195129,150.0,7.14e-05,2]
[343961677,1733153195173,150.0,7.16e-05,2]
[343961678,1733153201334,281.15819861,6.904e-05,2]
[343961679,1733153203187,150.0,6.904e-05,2]
[343961680,1733153203517,150.0,7.096e-05,2]
[343961681,1733153206658,150.0,6.904e-05,2]
[343961682,1733153206959,150.0,7e-05,2]
[343961683,1733153207308,150.0,7.096e-05,2]
[343961684,1733153211113,150.0,6.904e-05,2]
[343961685,1733153211435,150.0,7.096e-05,2]
[343961686,1733153214641,150.0,6.904e-05,2]
[343961687,1733153214817,150.0,6.915e-05,2]
[343961688,1733153215645,150.0,6.927e-05,2]
[343961689,1733153215709,150.0,6.938e-05,2]
[343961690,1733153215797,150.0,6.949e-05,2]
[343961691,1733153217312,150.0,6.961e-05,2]
[343961692,1733153217396,150.0,6.972e-05,2]
[343961693,1733153217453,150.0,6.983e-05,2]
[343961694,1733153217515,150.0,6.994e-05,2]
[343961695,1733153217587,150.0,7.006e-05,2]
[343961696,1733153217900,150.0,7.017e-05,2]
[343961697,1733153218232,150.0,7.028e-05,2]
[343961698,1733153218980,150.0,7.039e-05,2]
[343961699,1733153219026,150.0,7.051e-05,2]
[343961700,1733153219229,150.0,7.062e-05,2]
[343961701,1733153219547,150.0,7.073e-05,2]
[343961703,1733153219891,150.0,7.085e-05,2]
[343961704,1733153220221,150.0,7.096e-05,2]
[343961705,1733153220560,150.0,7.107e-05,2]
[343961706,1733153220869,150.0,7.118e-05,2]
[343961707,1733153221174,150.0,7.13e-05,2]
[343961708,1733153221503,150.0,7.141e-05,2]
[343961709,1733153221836,150.0,7.152e-05,2]
[343961874,1733153250455,155.76123229,6.904e-05,2]
[343961875,1733153253804,168.72049023,6.904e-05,2]
[343961878,1733153257317,150.0,6.904e-05,2]
[343961879,1733153259824,150.0,6.904e-05,2]
[343961880,1733153260142,150.0,6.919e-05,2]
[343961881,1733153260492,150.0,6.935e-05,2]
[343961882,1733153260806,150.0,6.95e-05,2]
[343961883,1733153261129,150.0,6.965e-05,2]
[343961884,1733153261463,150.0,6.981e-05,2]
[343961885,1733153261783,150.0,6.996e-05,2]
[343961886,1733153262087,150.0,7.012e-05,2]
[343961887,1733153262432,150.0,7.027e-05,2]
[343961888,1733153262805,150.0,7.042e-05,2]
[343961889,1733153263172,150.0,7.058e-05,2]
[343961890,1733153264892,150.0,7.073e-05,2]
[343961891,1733153264937,150.0,7.088e-05,2]
[343961892,1733153264987,150.0,7.104e-05,2]
[343961893,1733153265038,150.0,7.119e-05,2]
[343961894,1733153265106,150.0,7.134e-05,2]
[343961895,1733153265856,150.0,7.15e-05,2]
[343961951,1733153432360,-6770.0,7.164e-05,5]
[343961952,1733153432372,-556.26670477,7.164e-05,5]
[343961953,1733153432383,-915.062,7.164e-05,5]
[343961954,1733153432395,-1360.014565,7.164e-05,5]
[343961955,1733153432407,-3086.30673023,7.164e-05,5]
[343961956,1733153432417,-150.0,7.164e-05,2]
[343961957,1733153432427,-150.0,7.165e-05,2]
[343961958,1733153432438,-765.19208097,7.168e-05,2]
[343961959,1733153432447,-383.16870906,7.168e-05,2]
[343961960,1733153432457,-150.0,7.175e-05,2]
[343961961,1733153432467,-345.33247974,7.175e-05,2]
[343961962,1733153432484,-419.85960123,7.175e-05,2]
[343961963,1733153432494,-383.16870906,7.175e-05,2]
[343961964,1733153432504,-150.0,7.179e-05,2]
[343961965,1733153432514,-150.0,7.18e-05,2]
[343961966,1733153432527,-765.19208097,7.183e-05,2]
[343961967,1733153432539,-383.16870906,7.183e-05,2]
[343961968,1733153432551,-150.0,7.186e-05,2]
[343961969,1733153432562,-765.19208097,7.191e-05,2]
[343961970,1733153432573,-383.16870906,7.191e-05,2]
[343961971,1733153432583,-150.0,7.192e-05,2]
[343961972,1733153432593,-166.66,7.195e-05,2]
[343961973,1733153432603,-150.0,7.196e-05,2]
[343961974,1733153432613,-150.0,7.197e-05,2]
[343961975,1733153432623,-765.19208097,7.199e-05,2]
[343961976,1733153432633,-383.16870906,7.199e-05,2]
[343961977,1733153432643,-150.0,7.199e-05,2]
[343961978,1733153432653,-765.19208097,7.206e-05,2]
[343961979,1733153432663,-383.16870906,7.206e-05,2]
[343961980,1733153432672,-150.0,7.209e-05,2]
[343961981,1733153432682,-150.0,7.211e-05,2]
[343961982,1733153432691,-765.19208097,7.214e-05,2]
[343961983,1733153432701,-383.16870906,7.214e-05,2]
[343961985,1733153432711,-150.0,7.219e-05,2]
[343961987,1733153432720,-150.0,7.22e-05,2]
[343961989,1733153432733,-363.81,7.22e-05,2]
[343961990,1733153432742,-329.1,7.22e-05,2]
[343961991,1733153432752,-300.0,7.22e-05,2]
[343961992,1733153432762,-150.0,7.22e-05,2]
[343961993,1733153432771,-300.0,7.22e-05,2]
[343961994,1733153432780,-435.18,7.22e-05,2]
[343961995,1733153432789,-869.58,7.22e-05,2]
[343961996,1733153432799,-765.19208097,7.222e-05,2]
[343961997,1733153432808,-383.16870906,7.222e-05,2]
[343961998,1733153432818,-150.0,7.222e-05,2]
[343961999,1733153432827,-150.0,7.226e-05,2]
[343962000,1733153432836,-765.19208097,7.23e-05,2]
[343962001,1733153432846,-383.16870906,7.23e-05,2]
[343962002,1733153432856,-150.0,7.231e-05,2]
[343962003,1733153432866,-765.19208097,7.237e-05,2]
[343962004,1733153432875,-383.16870906,7.237e-05,2]
[343962005,1733153432885,-150.0,7.238e-05,2]
[343962006,1733153432895,-150.0,7.242e-05,2]
[343962007,1733153432904,-150.0,7.243e-05,2]
[343962008,1733153432913,-765.19208097,7.245e-05,2]
[343962009,1733153432922,-383.16870906,7.245e-05,2]
[343962010,1733153432932,-765.19208097,7.253e-05,2]
[343962011,1733153432942,-383.16870906,7.253e-05,2]
[343962012,1733153432951,-150.0,7.254e-05,2]
[343962013,1733153432960,-150.0,7.257e-05,2]
[343962014,1733153432970,-150.0,7.258e-05,2]
[343962015,1733153432982,-765.19208097,7.261e-05,2]
[343962016,1733153432992,-383.16870906,7.261e-05,2]
[343962017,1733153433001,-150.0,7.265e-05,2]
[343962018,1733153433010,-765.19208097,7.268e-05,2]
[343962019,1733153433020,-383.16870906,7.268e-05,2]
[343962020,1733153433030,-434.0,7.27e-05,2]
[343962021,1733153433040,-150.0,7.272e-05,2]
[343962022,1733153433050,-765.19208097,7.276e-05,2]
[343962023,1733153433059,-383.16870906,7.276e-05,2]
[343962024,1733153433069,-150.0,7.276e-05,2]
[343962025,1733153433079,-150.0,7.278e-05,2]
[343962026,1733153433088,-765.19208097,7.284e-05,2]
[343962027,1733153433098,-383.16870906,7.284e-05,2]
[343962028,1733153433108,-150.0,7.288e-05,2]
[343962029,1733153433117,-150.0,7.288e-05,2]
[343962030,1733153433127,-150.0,7.288e-05,2]
[343962031,1733153433136,-150.0,7.288e-05,2]
[343962032,1733153433146,-150.0,7.288e-05,2]
[343962033,1733153433156,-150.0,7.288e-05,2]
[343962034,1733153433165,-765.19208097,7.292e-05,2]
[343962035,1733153433175,-383.16870906,7.292e-05,2]
[343962036,1733153433186,-150.0,7.298e-05,2]
[343962037,1733153433196,-150.0,7.299e-05,2]
[343962038,1733153433207,-765.19208097,7.299e-05,2]
[343962039,1733153433218,-383.16870906,7.299e-05,2]
[343962040,1733153433231,-150.0,7.303e-05,2]
[343962041,1733153433241,-765.19208097,7.307e-05,2]
[343962042,1733153433252,-383.16870906,7.307e-05,2]
[343962043,1733153433262,-150.0,7.31e-05,2]
[343962044,1733153433272,-765.19208097,7.315e-05,2]
[343962045,1733153433282,-383.16870906,7.315e-05,2]
[343962046,1733153433295,-150.0,7.317e-05,2]
[343962047,1733153433305,-150.0,7.318e-05,2]
[343962048,1733153433316,-150.0,7.322e-05,2]
[343962049,1733153433326,-765.19208097,7.323e-05,2]
[343962050,1733153433337,-383.16870906,7.323e-05,2]
[343962051,1733153433347,-765.19208097,7.33e-05,2]
[343962052,1733153433359,-383.16870906,7.33e-05,2]
[343962053,1733153433369,-150.0,7.333e-05,2]
[343962054,1733153433379,-150.0,7.334e-05,2]
[343962055,1733153433393,-150.0,7.337e-05,2]
[343962056,1733153433403,-765.19208097,7.338e-05,2]
[343962057,1733153433413,-383.16870906,7.338e-05,2]
[343962058,1733153433423,-150.0,7.344e-05,2]
[343962059,1733153433433,-765.19208097,7.346e-05,2]
[343962060,1733153433443,-383.16870906,7.346e-05,2]
[343962061,1733153433454,-150.0,7.349e-05,2]
[343962062,1733153433465,-765.19208097,7.354e-05,2]
[343962063,1733153433479,-383.16870906,7.354e-05,2]
[343962064,1733153433490,-150.0,7.355e-05,2]
[343962065,1733153433502,-150.0,7.357e-05,2]
[343962066,1733153433513,-765.19208097,7.361e-05,2]
[343962067,1733153433524,-383.16870906,7.361e-05,2]
[343962068,1733153433535,-150.0,7.364e-05,2]
[343962069,1733153433547,-150.0,7.367e-05,2]
[343962070,1733153433557,-765.19208097,7.369e-05,2]
[343962071,1733153433567,-383.16870906,7.369e-05,2]
[343962072,1733153433578,-150.0,7.376e-05,2]
[343962073,1733153433589,-765.19208097,7.377e-05,2]
[343962074,1733153433599,-383.16870906,7.377e-05,2]
[343962075,1733153433610,-150.0,7.378e-05,2]
[343962076,1733153433620,-150.0,7.38e-05,2]
[343962077,1733153433631,-150.0,7.384e-05,2]
[343962078,1733153433642,-765.19208097,7.385e-05,2]
[343962079,1733153433653,-383.16870906,7.385e-05,2]
[343962080,1733153433664,-150.0,7.389e-05,2]
[343962081,1733153433675,-765.19208097,7.392e-05,2]
[343962082,1733153433686,-383.16870906,7.392e-05,2]
[343962083,1733153433698,-150.0,7.395e-05,2]
[343962084,1733153433708,-765.19208097,7.4e-05,2]
[343962085,1733153433719,-383.16870906,7.4e-05,2]
[343962086,1733153433733,-150.0,7.4e-05,2]
[343962087,1733153433744,-765.19208097,7.408e-05,2]
[343962088,1733153433754,-383.16870906,7.408e-05,2]
[343962089,1733153433764,-150.0,7.41e-05,2]
[343962090,1733153433775,-150.0,7.412e-05,2]
[343962091,1733153433785,-765.19208097,7.416e-05,2]
[343962092,1733153433795,-150.0,7.416e-05,2]
[343962093,1733153433805,-383.16870906,7.416e-05,2]
[343962094,1733153433815,-150.0,7.423e-05,2]
[343962095,1733153433826,-765.19208097,7.423e-05,2]
[343962096,1733153433836,-383.16870906,7.423e-05,2]
[343962097,1733153433846,-150.0,7.426e-05,2]
[343962098,1733153433856,-765.19208097,7.431e-05,2]
[343962099,1733153433866,-383.16870906,7.431e-05,2]
[343962100,1733153433875,-150.0,7.434e-05,2]
[343962101,1733153433885,-765.19208097,7.439e-05,2]
[343962102,1733153433894,-383.16870906,7.439e-05,2]
[343962103,1733153433903,-150.0,7.441e-05,2]
[343962104,1733153433913,-150.0,7.446e-05,2]
[343962105,1733153433923,-765.19208097,7.447e-05,2]
[343962106,1733153433933,-383.16870906,7.447e-05,2]
[343962107,1733153433943,-765.19208097,7.454e-05,2]
[343962108,1733153433953,-383.16870906,7.454e-05,2]
[343962109,1733153433963,-150.0,7.456e-05,2]
[343962110,1733153433977,-150.0,7.457e-05,2]
[343962111,1733153433987,-765.19208097,7.462e-05,2]
[343962112,1733153433996,-383.16870906,7.462e-05,2]
[343962113,1733153434006,-150.0,7.468e-05,2]
[343962114,1733153434015,-765.19208097,7.47e-05,2]
[343962115,1733153434025,-383.16870906,7.47e-05,2]
[343962116,1733153434035,-150.0,7.472e-05,2]
[343962117,1733153434045,-765.19208097,7.478e-05,2]
[343962118,1733153434054,-383.16870906,7.478e-05,2]
[343962119,1733153434064,-150.0,7.479e-05,2]
[343962120,1733153434073,-150.0,7.479e-05,2]
[343962121,1733153434083,-150.0,7.479e-05,2]
[343962122,1733153434093,-150.0,7.479e-05,2]
[343962123,1733153434103,-765.19208097,7.485e-05,2]
[343962124,1733153434112,-375.46983219,7.485e-05,2]
[343962125,1733153434126,-7.69887687,7.485e-05,2]
[343962126,1733153434136,-150.0,7.487e-05,2]
[343962127,1733153434146,-150.0,7.491e-05,2]
[343962128,1733153434156,-765.19208097,7.493e-05,2]
[343962129,1733153434165,-383.16870906,7.493e-05,2]
[343962130,1733153434176,-1000.0,7.5e-05,2]
[343962131,1733153434185,-765.19208097,7.501e-05,2]
[343962132,1733153434195,-383.16870906,7.501e-05,2]
[343962133,1733153434204,-150.0,7.502e-05,2]
[343962134,1733153434214,-150.0,7.502e-05,2]
[343962135,1733153434226,-765.19208097,7.509e-05,2]
[343962136,1733153434236,-383.16870906,7.509e-05,2]
[343962137,1733153434245,-150.0,7.513e-05,2]
[343962138,1733153434255,-765.19208097,7.516e-05,2]
[343962139,1733153434265,-383.16870906,7.516e-05,2]
[343962140,1733153434275,-150.0,7.518e-05,2]
[343962141,1733153434285,-16290.33948406,7.522e-05,2]
[343962142,1733153434298,-35830.29181413,7.522e-05,2]
[343962143,1733153434321,-972.30523809,7.522e-05,2]
[343962144,1733153434338,-1594.1682,7.522e-05,2]
[343962145,1733153434351,-441.73308962,7.522e-05,2]
[343962146,1733153434362,-257.76727478,7.522e-05,2]
[343962147,1733153434374,-461.62515191,7.522e-05,2]
[343962148,1733153434400,-937.332022,7.522e-05,2]
[343962149,1733153434412,-1045.76000044,7.522e-05,2]
[343962161,1733153438227,-3933.53933006,7.522e-05,2]
[343962177,1733153438377,-924.80388,7.522e-05,2]
[343962179,1733153438388,-1184.25096,7.522e-05,2]
[343962180,1733153438401,-911.40335695,7.522e-05,2]
[343962181,1733153438412,-64320.77093461,7.522e-05,2]
[343962182,1733153438438,-257.22678704,7.522e-05,2]
[343962183,1733153438449,-8020.67563765,7.522e-05,2]
[343962184,1733153438619,-95442.3391519,7.522e-05,2]
[343962185,1733153438631,-2820.0,7.522e-05,2]
[343962186,1733153438644,-339.96175596,7.522e-05,2]
[343962198,1733153440492,-3327.33241027,7.522e-05,2]
[343962199,1733153440569,-967.12,7.522e-05,2]
[343962200,1733153440670,-387.6327407,7.522e-05,2]
[343962201,1733153440682,-568.66999995,7.522e-05,2]
[343962202,1733153440693,-29553.36455555,7.522e-05,2]
[343962203,1733153440703,-1832.28,7.522e-05,2]
[343962204,1733153440714,-850.86,7.522e-05,2]
[343962236,1733153443302,-153354.06622433,7.522e-05,2]
[343962239,1733153443312,-765.19208097,7.524e-05,2]
[343962241,1733153443326,-383.16870906,7.524e-05,2]
[343962243,1733153443335,-150.0,7.525e-05,2]
[343962244,1733153443345,-765.19208097,7.532e-05,2]
[343962245,1733153443355,-383.16870906,7.532e-05,2]
[343962246,1733153443365,-150.0,7.533e-05,2]
[343962247,1733153443375,-150.0,7.536e-05,2]
[343962248,1733153443384,-765.19208097,7.54e-05,2]
[343962249,1733153443395,-383.16870906,7.54e-05,2]
[343962250,1733153443405,-150.0,7.547e-05,2]
[343962251,1733153443414,-765.19208097,7.547e-05,2]
[343962252,1733153443424,-383.16870906,7.547e-05,2]
[343962253,1733153443433,-150.0,7.548e-05,2]
[343962254,1733153443443,-765.19208097,7.555e-05,2]
[343962255,1733153443452,-383.16870906,7.555e-05,2]
[343962256,1733153443462,-150.0,7.558e-05,2]
[343962257,1733153443472,-765.19208097,7.563e-05,2]
[343962258,1733153443487,-383.16870906,7.563e-05,2]
[343962259,1733153443497,-150.0,7.564e-05,2]
[343962260,1733153443506,-150.0,7.57e-05,2]
[343962261,1733153443516,-765.19208097,7.57e-05,2]
[343962262,1733153443527,-383.16870906,7.57e-05,2]
[343962263,1733153443537,-150.0,7.575e-05,2]
[343962264,1733153443547,-765.19208097,7.578e-05,2]
[343962265,1733153443559,-383.16870906,7.578e-05,2]
[343962266,1733153443569,-150.0,7.579e-05,2]
[343962267,1733153443578,-150.0,7.581e-05,2]
[343962268,1733153443588,-765.19208097,7.586e-05,2]
[343962269,1733153443597,-383.16870906,7.586e-05,2]
[343962270,1733153443607,-150.0,7.592e-05,2]
[343962271,1733153443618,-765.19208097,7.594e-05,2]
[343962272,1733153443628,-383.16870906,7.594e-05,2]
[343962273,1733153443637,-150.0,7.595e-05,2]
[343962274,1733153443646,-2500.0,7.6e-05,2]
[343962275,1733153443657,-1329.0,7.6e-05,2]
[343962276,1733153443667,-765.19208097,7.601e-05,2]
[343962277,1733153443678,-383.16870906,7.601e-05,2]
[343962278,1733153443688,-150.0,7.604e-05,2]
[343962279,1733153443697,-765.19208097,7.609e-05,2]
[343962280,1733153443707,-383.16870906,7.609e-05,2]
[343962281,1733153443717,-150.0,7.61e-05,2]
[343962282,1733153443732,-150.0,7.615e-05,2]
[343962283,1733153443744,-765.19208097,7.617e-05,2]
[343962284,1733153443755,-383.16870906,7.617e-05,2]
[343962285,1733153443766,-765.19208097,7.625e-05,2]
[343962286,1733153443776,-383.16870906,7.625e-05,2]
[343962287,1733153443787,-150.0,7.625e-05,2]
[343962288,1733153443797,-150.0,7.626e-05,2]
[343962289,1733153443808,-765.19208097,7.632e-05,2]
[343962290,1733153443818,-383.16870906,7.632e-05,2]
[343962291,1733153443828,-150.0,7.637e-05,2]
[343962293,1733153443838,-765.19208097,7.64e-05,2]
[343962295,1733153443848,-383.16870906,7.64e-05,2]
[343962297,1733153443858,-150.0,7.641e-05,2]
[343962298,1733153443867,-765.19208097,7.648e-05,2]
[343962300,1733153443877,-383.16870906,7.648e-05,2]
[343962302,1733153443886,-150.0,7.649e-05,2]
[343962303,1733153443896,-765.19208097,7.656e-05,2]
[343962304,1733153443905,-383.16870906,7.656e-05,2]
[343962305,1733153443915,-150.0,7.656e-05,2]
[343962306,1733153443924,-150.0,7.66e-05,2]
[343962307,1733153443934,-765.19208097,7.663e-05,2]
[343962308,1733153443943,-383.16870906,7.663e-05,2]
[343962309,1733153443953,-765.19208097,7.671e-05,2]
[343962310,1733153443963,-150.0,7.671e-05,2]
[343962311,1733153443972,-261.00350237,7.671e-05,2]
[343962312,1733153443988,-383.16870906,7.671e-05,2]
[343962313,1733153443997,-213.63035891,7.671e-05,2]
[343962314,1733153444006,-228.20606869,7.671e-05,2]
[343962315,1733153444016,-273.33414276,7.671e-05,2]
[343962316,1733153444026,-296.23599165,7.671e-05,2]
[343962318,1733153444035,-258.34744677,7.671e-05,2]
[343962320,1733153444046,-175.26523904,7.671e-05,2]
[343962321,1733153444055,-507.04250113,7.673e-05,2]
[343962323,1733153444064,-461.62515191,7.673e-05,2]
[343962325,1733153444074,-6603.80073196,7.689e-05,2]
[343962326,1733153444084,-2605.57,7.689e-05,2]
[343962327,1733153444093,-2396.2902335,7.689e-05,2]
[343962328,1733153444103,-323.2942937,7.689e-05,2]
[343962329,1733153444112,-1087.9729255,7.689e-05,2]
[343962330,1733153444122,-151.5375418,7.689e-05,2]
[343962331,1733153444131,-70570.32070685,7.689e-05,2]
[343962332,1733153444141,-1000.0,7.689e-05,2]
[343962334,1733153444150,-49340.73866688,7.69e-05,2]
[343962336,1733153444159,-67701.06532165,7.69e-05,2]
[343962338,1733153444172,-1098.06618187,7.69e-05,2]
[343962341,1733153444187,-5241.40000005,7.69e-05,2]
[343962345,1733153444227,-6769.091925,7.69e-05,2]
[343962346,1733153444240,-11856.30900591,7.69e-05,2]
[343962347,1733153444261,-5145.88271804,7.69e-05,2]
[343962348,1733153444272,-2849.56620165,7.69e-05,2]
[343962349,1733153444292,-24903.20771208,7.69e-05,2]
[343962350,1733153444308,-4111.83547982,7.69e-05,2]
[343962351,1733153444319,-13338.60330676,7.69e-05,2]
[343962354,1733153446210,-762.478,7.682e-05,2]
[343962355,1733153446219,-2532.23206827,7.69e-05,2]
[343962356,1733153446266,-7488.0559875,7.69e-05,2]
[343962357,1733153446277,-1156.1159,7.69e-05,2]
[343962358,1733153446288,-2204.63177052,7.69e-05,2]
[343962359,1733153446322,-3668.2345227,7.69e-05,2]
[343962360,1733153446335,-3026.3890225,7.69e-05,2]
[343962361,1733153446348,-1294.66512324,7.69e-05,2]
[343962362,1733153446499,-5363.85587429,7.69e-05,2]
[343962363,1733153446511,-5097.802,7.69e-05,2]
[343962364,1733153446522,-8546.18385,7.69e-05,2]
[343962365,1733153446534,-7217.51989,7.69e-05,2]
[343962366,1733153446546,-6377.33955,7.69e-05,2]
[343962367,1733153446557,-13703.6384844,7.69e-05,2]
[343962368,1733153446568,-5737.1775,7.69e-05,2]
[343962369,1733153446579,-21983.1348795,7.69e-05,2]
[343962370,1733153446611,-4604.54995,7.69e-05,2]
[343962382,1733153484277,200.0,7e-05,2]
[343962383,1733153486383,500.0,7.1e-05,2]
[343962384,1733153512109,166.67,7.098e-05,2]
[343962389,1733153788031,305.02,6.848e-05,2]
[343962390,1733153798266,22036.2,6.835e-05,2]
[343962391,1733153811536,250.0,6.835e-05,2]
[343962392,1733153816264,300.0,7.1e-05,2]
[343962405,1733154142299,166.67,7.004e-05,2]
[343962407,1733154309074,150.0,6.904e-05,2]
[343962408,1733154314100,150.0,6.904e-05,2]
[343962409,1733154314484,150.0,6.959e-05,2]
[343962410,1733154314794,150.0,7.014e-05,2]
[343962411,1733154315113,150.0,7.068e-05,2]
[343962412,1733154315925,150.0,7.123e-05,2]
[343962687,1733154631545,-150.0,7.178e-05,2]
[343962688,1733154631555,-150.0,7.233e-05,2]
[343962689,1733154631564,-2307.94469147,7.233e-05,2]
[343962690,1733154631574,-2307.94469146,7.261e-05,2]
[343962691,1733154631583,-150.0,7.288e-05,2]
[343962692,1733154631593,-150.0,7.288e-05,2]
[343962693,1733154631603,-2307.94469146,7.288e-05,2]
[343962694,1733154631613,-150.0,7.342e-05,2]
[343962695,1733154631623,-464.86,7.35e-05,2]
[343962696,1733154631632,-1558.07,7.35e-05,2]
[343962697,1733154631642,-257.0,7.361e-05,2]
[343962698,1733154631653,-150.0,7.397e-05,2]
[343962699,1733154631663,-150.0,7.452e-05,2]
[343962700,1733154631672,-150.0,7.507e-05,2]
[343962701,1733154631682,-500.0,7.507e-05,2]
[343962702,1733154631691,-150.0,7.562e-05,2]
[343962703,1733154631706,-150.0,7.562e-05,2]
[343962704,1733154631715,-300.0,7.589e-05,2]
[343962705,1733154631724,-2500.0,7.59e-05,2]
[343962706,1733154631734,-974.5797,7.59e-05,2]
[343962707,1733154631743,-293.4776,7.59e-05,2]
[343962708,1733154631752,-150.0,7.616e-05,2]
[343962709,1733154631762,-12437.058805,7.62e-05,2]
[343962710,1733154631771,-500.0,7.629e-05,2]
[343962711,1733154631782,-1000.0,7.661e-05,2]
[343962712,1733154631793,-1000.0,7.661e-05,2]
[343962713,1733154631803,-1000.0,7.661e-05,2]
[343962714,1733154631814,-1000.0,7.661e-05,2]
[343962715,1733154631823,-1000.0,7.661e-05,2]
[343962716,1733154631833,-1000.0,7.661e-05,2]
[343962717,1733154631843,-1000.0,7.661e-05,2]
[343962718,1733154631853,-1000.0,7.661e-05,2]
[343962719,1733154631863,-1000.0,7.661e-05,2]
[343962720,1733154631873,-1000.0,7.661e-05,2]
[343962721,1733154631882,-1000.0,7.661e-05,2]
[343962723,1733154631893,-1000.0,7.661e-05,2]
[343962725,1733154631903,-1000.0,7.661e-05,2]
[343962727,1733154631912,-1000.0,7.661e-05,2]
[343962729,1733154631922,-1000.0,7.661e-05,2]
[343962731,1733154631931,-1000.0,7.661e-05,2]
[343962733,1733154631941,-957.8089,7.661e-05,2]
[343962735,1733154631954,-167.93723633,7.671e-05,2]
[343962737,1733154631964,-157.01266251,7.671e-05,2]
[343962739,1733154631973,-159.855648,7.673e-05,2]
[343962740,1733154631983,-500.0,7.673e-05,2]
[343962741,1733154631992,-150.0,7.688e-05,2]
[343962742,1733154632002,-1385.746,7.689e-05,2]
[343962743,1733154632011,-769.79533584,7.689e-05,2]